bitfinex/quotes_BTCUSD_20241018
["timestamp","ask_amount","ask_price","bid_price","bid_amount"]
[1729268784644,0.000829,68619.0,68618.0,0.27626]
[1729268786974,0.000829,68619.0,68618.0,0.29464339]
[1729268788259,0.01165513,68619.0,68618.0,0.29464339]
[1729268789191,0.000829,68619.0,68618.0,0.29464339]
[1729268789444,0.01165666,68619.0,68618.0,0.27626]
[1729268789664,0.000829,68619.0,68618.0,0.27626]
[1729268790768,0.000829,68619.0,68618.0,0.42521915]
[1729268791223,0.000829,68619.0,68618.0,0.27626]
[1729268791438,0.01165594,68619.0,68618.0,0.27626]
[1729268791917,0.000829,68619.0,68618.0,0.2743]
[1729268792166,0.01165717,68619.0,68618.0,0.27626]
[1729268792394,0.01165753,68619.0,68618.0,0.27626]
[1729268792626,0.01166135,68619.0,68618.0,0.27626]
[1729268793087,0.01166135,68619.0,68618.0,0.29514194]
[1729268794459,0.01166135,68619.0,68618.0,0.27626]
[1729268794695,0.01166135,68619.0,68618.0,0.2743]
[1729268794919,0.01166135,68619.0,68618.0,0.27626]
[1729268796456,0.02901523,68619.0,68618.0,0.27626]
[1729268803664,0.000829,68619.0,68618.0,0.27626]
[1729268803897,0.0290723,68619.0,68618.0,0.27626]
[1729268808474,0.03635515,68619.0,68618.0,0.27626]
[1729268808699,0.04266045,68619.0,68618.0,0.27626]
[1729268809832,0.05788831,68625.0,68624.0,0.00196]
[1729268810070,0.06510685,68628.0,68625.0,0.00196]
[1729268810302,0.01448374,68643.0,68625.0,0.00196]
[1729268810303,0.21850759,68637.0,68627.0,0.0776]
[1729268810560,0.21850759,68637.0,68629.0,0.254]
[1729268810774,0.0496129,68639.0,68632.0,0.40495915]
[1729268811042,0.0496129,68639.0,68636.0,0.254]
[1729268811275,0.21850759,68638.0,68637.0,0.14895915]
[1729268811499,0.21850759,68645.0,68638.0,0.1751]
[1729268811713,0.21850759,68645.0,68639.0,0.15095915]
[1729268811920,0.21850759,68645.0,68640.0,0.1751]
[1729268812137,0.21850759,68645.0,68630.0,0.09037702]
[1729268812138,0.0508064,68651.0,68641.0,0.32405915]
[1729268812368,0.0508064,68651.0,68649.0,0.17706]
[1729268812601,0.0508064,68651.0,68649.0,0.40151915]
[1729268812826,0.000829,68651.0,68649.0,0.40151915]
[1729268814159,0.000829,68651.0,68649.0,0.40351915]
[1729268815311,0.000829,68651.0,68649.0,0.40151915]
[1729268820586,0.000829,68651.0,68649.0,0.42016319]
[1729268824472,0.000829,68651.0,68649.0,0.40151915]
[1729268828108,0.000829,68651.0,68649.0,0.40351915]
[1729268828359,0.000829,68651.0,68649.0,0.40151915]
[1729268829220,0.000829,68651.0,68649.0,0.40351915]
[1729268829430,0.000829,68651.0,68649.0,0.40151915]
[1729268831931,0.000829,68651.0,68649.0,0.41999786]
[1729268834597,0.000829,68651.0,68649.0,0.40151915]
[1729268838347,0.000829,68651.0,68649.0,0.44830829]
[1729268838564,0.000829,68651.0,68649.0,0.40151915]
[1729268842379,0.01171084,68650.0,68649.0,0.40151915]
[1729268843066,0.01171084,68650.0,68649.0,0.41994039]
[1729268844376,0.01171331,68650.0,68649.0,0.41994039]
[1729268844587,0.01171331,68650.0,68649.0,0.40151915]
[1729268848427,0.01171564,68650.0,68649.0,0.40351915]
[1729268849446,0.01171564,68650.0,68649.0,0.40151915]
[1729268850154,0.000829,68650.0,68649.0,0.40151915]
[1729268852650,0.000829,68650.0,68649.0,0.40351915]
[1729268854914,0.000829,68650.0,68649.0,0.41980593]
[1729268856723,0.000829,68650.0,68649.0,0.42180593]
[1729268857412,0.000829,68650.0,68649.0,0.41980593]
[1729268859627,0.000829,68650.0,68649.0,0.40151915]
[1729268862631,0.000829,68650.0,68649.0,0.15091915]
[1729268862849,0.00989612,68650.0,68649.0,0.00196]
[1729268863075,0.00717212,68650.0,68649.0,0.00196]
[1729268863552,0.000829,68651.0,68650.0,0.00196]
[1729268867426,0.000829,68651.0,68650.0,0.02098125]
[1729268867642,0.000829,68651.0,68650.0,0.00196]
[1729268867918,0.19231497,68651.0,68635.0,0.02261415]
[1729268868145,0.04347954,68639.0,68638.0,0.21850759]
[1729268868389,0.04344634,68639.0,68638.0,0.21850759]
[1729268868591,0.07440935,68639.0,68636.0,0.00196]
[1729268868798,0.06083652,68638.0,68636.0,0.00196]
[1729268869013,0.21850759,68637.0,68635.0,0.01898953]
[1729268869243,0.03096245,68636.0,68633.0,0.001658]
[1729268869471,0.05697551,68635.0,68633.0,0.0201119]
[1729268869695,0.09613196,68634.0,68633.0,0.001658]
[1729268869945,0.07874036,68634.0,68633.0,0.001658]
[1729268870167,0.09613196,68634.0,68633.0,0.001658]
[1729268870383,0.01357085,68634.0,68633.0,0.001658]
[1729268871465,0.04337298,68637.0,68633.0,0.001658]
[1729268871713,0.06070407,68637.0,68633.0,0.001658]
[1729268871934,0.01353898,68636.0,68633.0,0.001658]
[1729268872368,0.05691196,68636.0,68633.0,0.001658]
[1729268872582,0.01353898,68635.0,68633.0,0.001658]
[1729268872804,0.05691196,68636.0,68633.0,0.001658]
[1729268873034,0.05691196,68635.0,68633.0,0.001658]
[1729268873242,0.01353898,68634.0,68633.0,0.001658]
[1729268873470,0.04331467,68635.0,68633.0,0.001658]
[1729268873672,0.04331467,68637.0,68633.0,0.001658]
[1729268873857,0.01351318,68636.0,68633.0,0.001658]
[1729268874711,0.01731688,68641.0,68634.0,0.21850759]
[1729268874920,0.01731688,68641.0,68633.0,0.001658]
[1729268874921,0.21850759,68639.0,68637.0,0.00196]
[1729268875137,0.01080205,68640.0,68636.0,0.00196]
[1729268875361,0.21850759,68646.0,68636.0,0.00196]
[1729268875798,0.01079988,68645.0,68636.0,0.00196]
[1729268876224,0.01079988,68645.0,68633.0,0.003618]
[1729268876896,0.01079988,68645.0,68635.0,0.00196]
[1729268877769,0.01079988,68645.0,68633.0,0.001658]
[1729268877979,0.14895915,68644.0,68633.0,0.001658]
[1729268878199,0.01079988,68643.0,68638.0,0.00196]
[1729268878427,0.01079988,68643.0,68633.0,0.001658]
[1729268878428,0.01079988,68643.0,68642.0,0.00196]
[1729268879058,0.01079692,68643.0,68642.0,0.00196]
[1729268879306,0.01079692,68646.0,68643.0,0.00196]
[1729268879515,0.01079692,68646.0,68639.0,0.00196]
[1729268879721,0.01079692,68645.0,68639.0,0.00196]
[1729268879936,0.14895915,68649.0,68646.0,0.00196]
[1729268880381,0.01810408,68651.0,68633.0,0.001658]
[1729268880382,0.01079733,68648.0,68647.0,0.00196]
[1729268880608,0.01079733,68648.0,68634.0,0.00196]
[1729268880835,0.15975648,68647.0,68639.0,0.00196]
[1729268881051,0.01079733,68646.0,68639.0,0.00196]
[1729268882076,0.14895915,68647.0,68639.0,0.00196]
[1729268882271,0.01079663,68646.0,68639.0,0.00196]
[1729268882475,0.01079663,68646.0,68642.0,0.00196]
[1729268882694,0.01079663,68646.0,68645.0,0.00196]
[1729268882895,0.01079663,68646.0,68639.0,0.00196]
[1729268883858,0.01079663,68646.0,68643.0,0.00196]
[1729268884516,0.01079663,68646.0,68634.0,0.00196]
[1729268884739,0.14895915,68645.0,68633.0,0.001658]
[1729268884956,0.01079663,68644.0,68633.0,0.001658]
[1729268885224,0.14895915,68643.0,68633.0,0.001658]
[1729268885678,0.24280995,68642.0,68633.0,0.001658]
[1729268885912,0.18856265,68641.0,68633.0,0.001658]
[1729268886109,0.02430352,68640.0,68633.0,0.001658]
[1729268886315,0.14895915,68639.0,68634.0,0.21850759]
[1729268886529,0.01080105,68638.0,68637.0,0.00196]
[1729268887000,0.0153,68648.0,68637.0,0.00196]
[1729268887226,0.21850759,68645.0,68639.0,0.00196]
[1729268887437,0.02430648,68644.0,68639.0,0.00196]
[1729268887667,0.01080288,68643.0,68639.0,0.00196]
[1729268887894,0.01080288,68642.0,68639.0,0.00196]
[1729268888094,0.01080288,68641.0,68638.0,0.00196]
[1729268888301,0.01080288,68640.0,68638.0,0.00196]
[1729268888506,0.000829,68650.0,68638.0,0.00196]
[1729268888507,0.01080288,68639.0,68638.0,0.00196]
[1729268888922,0.01080288,68649.0,68638.0,0.00196]
[1729268889140,0.21850759,68646.0,68638.0,0.00196]
[1729268889337,0.02431315,68645.0,68641.0,0.00196]
[1729268889562,0.01351027,68644.0,68641.0,0.00196]
[1729268889942,0.01081182,68643.0,68641.0,0.00196]
[1729268890056,0.01081182,68643.0,68638.0,0.00196]
[1729268890304,0.01081182,68642.0,68636.0,0.08126]
[1729268890530,0.01081182,68641.0,68638.0,0.00196]
[1729268890757,0.01081182,68640.0,68636.0,0.10011856]
[1729268890974,0.01081182,68639.0,68636.0,0.10011856]
[1729268891201,0.01081182,68638.0,68636.0,0.10011856]
[1729268891424,0.01081182,68637.0,68636.0,0.10011856]
[1729268891645,0.01081182,68646.0,68636.0,0.10011856]
[1729268891853,0.24284368,68645.0,68636.0,0.10011856]
[1729268892184,0.041635,68644.0,68642.0,0.00196]
[1729268892394,0.02433609,68643.0,68642.0,0.00196]
[1729268893471,0.02435258,68643.0,68642.0,0.00196]
[1729268893681,0.02436334,68643.0,68642.0,0.00196]
[1729268893905,0.03085987,68643.0,68636.0,0.10011856]
[1729268894126,0.14895915,68648.0,68636.0,0.01885856]
[1729268894127,0.03085987,68642.0,68636.0,0.01885856]
[1729268894346,0.04168789,68641.0,68637.0,0.21850759]
[1729268894572,0.02436305,68640.0,68633.0,0.001658]
[1729268894788,0.01732484,68641.0,68633.0,0.001658]
[1729268894789,0.02436305,68639.0,68633.0,0.001658]
[1729268895003,0.02436305,68638.0,68633.0,0.001658]
[1729268895219,0.04168789,68637.0,68635.0,0.00196]
[1729268895466,0.04168789,68636.0,68635.0,0.00196]
[1729268897483,0.04175685,68636.0,68635.0,0.00196]
[1729268897924,0.04175685,68636.0,68633.0,0.001658]
[1729268898137,0.04175685,68635.0,68633.0,0.001658]
[1729268898405,0.04175685,68634.0,68633.0,0.003618]
[1729268900164,0.04175685,68634.0,68633.0,0.001658]
[1729268901528,0.04175685,68634.0,68633.0,0.003618]
[1729268901529,0.0309127,68634.0,68633.0,0.003618]
[1729268901747,0.04175926,68634.0,68633.0,0.003618]
[1729268902645,0.04175926,68634.0,68633.0,0.001658]
[1729268904410,0.19800024,68634.0,68633.0,0.001658]
[1729268904650,0.19800024,68634.0,68621.0,0.21850759]
[1729268904651,0.28449214,68634.0,68621.0,0.21850759]
[1729268904893,0.04324422,68624.0,68621.0,0.21850759]
[1729268905104,0.07073422,68623.0,68621.0,0.21850759]
[1729268905312,0.07850573,68622.0,68615.0,0.01899538]
[1729268905538,0.01446623,68619.0,68613.0,0.2581]
[1729268905733,0.01356212,68618.0,68613.0,0.2581]
[1729268905959,0.01356212,68617.0,68613.0,0.2581]
[1729268906210,0.03092163,68616.0,68613.0,0.27698336]
[1729268906422,0.02169939,68620.0,68609.0,0.001658]
[1729268906423,0.39838837,68615.0,68609.0,0.001658]
[1729268906667,0.04324422,68613.0,68609.0,0.001658]
[1729268906898,0.06486633,68610.0,68609.0,0.001658]
[1729268907126,0.19801438,68610.0,68609.0,0.001658]
[1729268907337,0.29172153,68610.0,68609.0,0.001658]
[1729268908270,0.27005937,68610.0,68609.0,0.001658]
[1729268908489,0.27729619,68610.0,68609.0,0.001658]
[1729268908917,0.27725739,68610.0,68609.0,0.001658]
[1729268909129,0.25563288,68610.0,68609.0,0.001658]
[1729268909354,0.21242986,68610.0,68609.0,0.001658]
[1729268909579,0.08498297,68610.0,68609.0,0.001658]
[1729268909781,0.04177132,68610.0,68609.0,0.001658]
[1729268910482,0.01084969,68610.0,68609.0,0.001658]
[1729268910717,0.01084969,68610.0,68609.0,0.081858]
[1729268910928,0.05763699,68621.0,68609.0,0.081858]
[1729268910929,0.01084969,68615.0,68609.0,0.081858]
[1729268911143,0.01084969,68614.0,68609.0,0.081858]
[1729268911349,0.01084969,68613.0,68609.0,0.081858]
[1729268911560,0.01084969,68612.0,68609.0,0.081858]
[1729268911774,0.01084969,68611.0,68609.0,0.08263977]
[1729268912015,0.01735951,68621.0,68609.0,0.08263977]
[1729268912224,0.01080222,68620.0,68609.0,0.08263977]
[1729268912484,0.01080222,68619.0,68611.0,0.21850759]
[1729268912680,0.01080222,68618.0,68616.0,0.1716]
[1729268912903,0.21850759,68622.0,68621.0,0.00196]
[1729268913114,0.21850759,68622.0,68617.0,0.0768]
[1729268913115,0.01735951,68627.0,68626.0,0.00196]
[1729268913333,0.01728574,68627.0,68626.0,0.00196]
[1729268913545,0.041594,68627.0,68626.0,0.00196]
[1729268913839,0.02808941,68627.0,68626.0,0.00196]
[1729268914030,0.06051887,68636.0,68626.0,0.00196]
[1729268914264,0.01728574,68636.0,68635.0,0.00196]
[1729268914494,0.01080581,68636.0,68635.0,0.00196]
[1729268916466,0.01080581,68636.0,68633.0,0.083]
[1729268916689,0.01080581,68635.0,68633.0,0.083]
[1729268916909,0.01080581,68634.0,68633.0,0.083]
[1729268917162,0.04323313,68637.0,68634.0,0.00196]
[1729268917379,0.01080612,68636.0,68634.0,0.00196]
[1729268917667,0.01080708,68635.0,68626.0,0.0794]
[1729268917905,0.04323313,68637.0,68627.0,0.21850759]
[1729268917906,0.01080708,68634.0,68627.0,0.21850759]
[1729268918124,0.01080708,68633.0,68627.0,0.21850759]
[1729268918558,0.01080708,68633.0,68626.0,0.0794]
[1729268918978,0.01080956,68632.0,68626.0,0.0794]
[1729268919208,0.01080956,68631.0,68630.0,0.00196]
[1729268921204,0.01080956,68635.0,68626.0,0.083018]
[1729268921478,0.01080956,68634.0,68626.0,0.083018]
[1729268921698,0.01080956,68633.0,68626.0,0.083018]
[1729268921909,0.01080956,68632.0,68626.0,0.083018]
[1729268922126,0.01080956,68631.0,68626.0,0.083018]
[1729268922355,0.01080956,68630.0,68626.0,0.083018]
[1729268922561,0.01080956,68629.0,68626.0,0.083018]
[1729268922791,0.01080956,68628.0,68626.0,0.10122656]
[1729268922995,0.0172953,68636.0,68626.0,0.10122656]
[1729268923218,0.01081336,68635.0,68626.0,0.10122656]
[1729268923421,0.01081336,68634.0,68626.0,0.10122656]
[1729268923640,0.01081336,68633.0,68626.0,0.10122656]
[1729268923855,0.01081336,68632.0,68626.0,0.10122656]
[1729268924076,0.01081336,68631.0,68626.0,0.10122656]
[1729268924279,0.01081336,68630.0,68626.0,0.10122656]
[1729268924484,0.01081336,68629.0,68626.0,0.10122656]
[1729268924691,0.01081336,68628.0,68626.0,0.10122656]
[1729268925070,0.01081336,68627.0,68626.0,0.10122656]
[1729268925287,0.01081336,68635.0,68626.0,0.10122656]
[1729268925500,0.01081336,68635.0,68626.0,0.09926656]
[1729268925712,0.01081336,68634.0,68626.0,0.09926656]
[1729268925863,0.01081336,68633.0,68626.0,0.09926656]
[1729268926082,0.01081336,68632.0,68626.0,0.09926656]
[1729268926287,0.01081336,68631.0,68626.0,0.09926656]
[1729268926518,0.01081336,68630.0,68626.0,0.09926656]
[1729268926725,0.01081336,68629.0,68627.0,0.21850759]
[1729268926886,0.01081336,68628.0,68626.0,0.09926656]
[1729268927089,0.04325424,68637.0,68626.0,0.09926656]
[1729268927299,0.01081643,68636.0,68626.0,0.09926656]
[1729268927503,0.01081643,68635.0,68626.0,0.09926656]
[1729268927705,0.01081643,68634.0,68626.0,0.09926656]
[1729268927919,0.01081643,68633.0,68626.0,0.09926656]
[1729268928144,0.01081643,68632.0,68626.0,0.09926656]
[1729268928341,0.01081643,68631.0,68626.0,0.09926656]
[1729268928539,0.01081643,68630.0,68626.0,0.09926656]
[1729268928740,0.01081643,68629.0,68626.0,0.09926656]
[1729268929010,0.01081709,68628.0,68626.0,0.09926656]
[1729268929216,0.04327091,68636.0,68626.0,0.09926656]
[1729268929559,0.04327091,68637.0,68626.0,0.09926656]
[1729268930232,0.04327091,68636.0,68626.0,0.09926656]
[1729268930459,0.01081631,68635.0,68626.0,0.09926656]
[1729268930673,0.01081631,68634.0,68626.0,0.09926656]
[1729268930889,0.01081631,68633.0,68626.0,0.09926656]
[1729268931139,0.01081631,68632.0,68631.0,0.00196]
[1729268931365,0.01081631,68632.0,68627.0,0.00196]
[1729268931583,0.01081631,68631.0,68626.0,0.10122656]
[1729268931792,0.04327091,68636.0,68626.0,0.09926656]
[1729268931793,0.01081631,68630.0,68626.0,0.09926656]
[1729268932011,0.01081631,68629.0,68627.0,0.00196]
[1729268932236,0.01081631,68628.0,68627.0,0.00196]
[1729268932446,0.01081631,68635.0,68627.0,0.00196]
[1729268932687,0.01081631,68634.0,68633.0,0.00196]
[1729268932898,0.0108182,68634.0,68633.0,0.00196]
[1729268933108,0.0108182,68634.0,68626.0,0.10122656]
[1729268933324,0.0108182,68633.0,68627.0,0.21850759]
[1729268933547,0.04327793,68636.0,68627.0,0.21850759]
[1729268933548,0.0108182,68632.0,68627.0,0.21850759]
[1729268933764,0.0108182,68631.0,68626.0,0.10122656]
[1729268933964,0.0108182,68630.0,68626.0,0.10122656]
[1729268934183,0.0108182,68629.0,68626.0,0.10122656]
[1729268934388,0.0108182,68635.0,68626.0,0.10122656]
[1729268934595,0.0108182,68634.0,68626.0,0.083018]
[1729268934810,0.0108182,68633.0,68626.0,0.083018]
[1729268935012,0.0108182,68632.0,68626.0,0.083018]
[1729268935197,0.0108182,68631.0,68626.0,0.083018]
[1729268935423,0.0108182,68630.0,68626.0,0.083018]
[1729268935643,0.0108182,68629.0,68626.0,0.083018]
[1729268935863,0.0108182,68628.0,68626.0,0.083018]
[1729268936088,0.0108182,68627.0,68626.0,0.083018]
[1729268936561,0.0108182,68634.0,68626.0,0.083018]
[1729268936778,0.01081851,68627.0,68626.0,0.083018]
[1729268937455,0.01081851,68634.0,68626.0,0.083018]
[1729268937677,0.01082365,68633.0,68629.0,0.00196]
[1729268938124,0.01082365,68632.0,68630.0,0.00196]
[1729268938344,0.04327793,68635.0,68630.0,0.00196]
[1729268938564,0.01082944,68631.0,68629.0,0.00196]
[1729268938790,0.01082944,68631.0,68626.0,0.083018]
[1729268939012,0.01082944,68631.0,68626.0,0.081058]
[1729268939443,0.01082944,68630.0,68626.0,0.081058]
[1729268939879,0.01082944,68630.0,68629.0,0.00196]
[1729268940299,0.04327793,68634.0,68629.0,0.00196]
[1729268940498,0.04327793,68634.0,68626.0,0.083018]
[1729268941042,0.04327793,68634.0,68629.0,0.00196]
[1729268941259,0.04327793,68634.0,68626.0,0.083018]
[1729268941488,0.04327793,68634.0,68626.0,0.081058]
[1729268941489,0.03549838,68633.0,68626.0,0.081058]
[1729268941700,0.07877631,68633.0,68626.0,0.081058]
[1729268942122,0.07149404,68633.0,68626.0,0.081058]
[1729268942756,0.06064169,68633.0,68626.0,0.09973708]
[1729268942997,0.01813944,68632.0,68626.0,0.09973708]
[1729268943221,0.03551089,68631.0,68626.0,0.09973708]
[1729268943437,0.03551089,68630.0,68626.0,0.09973708]
[1729268943652,0.03551089,68629.0,68626.0,0.10169708]
[1729268943861,0.03551089,68628.0,68626.0,0.10169708]
[1729268944117,0.0282286,68627.0,68626.0,0.10169708]
[1729268944568,0.0282286,68627.0,68626.0,0.083018]
[1729268949895,0.0282286,68627.0,68626.0,0.081058]
[1729268950136,0.03551089,68627.0,68626.0,0.081058]
[1729268950568,0.03551089,68627.0,68626.0,0.001658]
[1729268951186,0.07878882,68627.0,68626.0,0.001658]
[1729268951687,0.03551089,68627.0,68626.0,0.001658]
[1729268952095,0.24938693,68627.0,68626.0,0.001658]
[1729268953164,0.43090797,68627.0,68626.0,0.001658]
[1729268953579,0.28194882,68627.0,68626.0,0.001658]
[1729268953777,0.20988205,68627.0,68626.0,0.001658]
[1729268954014,0.0788293,68627.0,68626.0,0.080218]
[1729268954243,0.0788293,68627.0,68626.0,0.254918]
[1729268954244,0.0282286,68627.0,68626.0,0.254918]
[1729268954681,0.01085715,68627.0,68626.0,0.254918]
[1729268955087,0.01085635,68627.0,68626.0,0.176358]
[1729268955300,0.01085635,68627.0,68626.0,0.178318]
[1729268955767,0.01085635,68627.0,68626.0,0.260118]
[1729268958551,0.21850759,68629.0,68626.0,0.258158]
[1729268958788,0.0108553,68627.0,68626.0,0.258158]
[1729268959014,0.18853058,68627.0,68626.0,0.258158]
[1729268959234,0.29682316,68627.0,68626.0,0.083458]
[1729268959478,0.18853058,68627.0,68626.0,0.001658]
[1729268960160,0.19581216,68627.0,68626.0,0.001658]
[1729268962295,0.17767528,68627.0,68626.0,0.001658]
[1729268962501,0.19579472,68627.0,68626.0,0.001658]
[1729268963133,0.19573203,68627.0,68626.0,0.001658]
[1729268966198,0.27526235,68627.0,68626.0,0.001658]
[1729268966404,0.0651115,68627.0,68626.0,0.001658]
[1729268966612,0.02820065,68627.0,68626.0,0.001658]
[1729268966828,0.02820065,68627.0,68626.0,0.003618]
[1729268967057,0.02820065,68627.0,68626.0,0.001658]
[1729268967925,0.02820065,68627.0,68626.0,0.003618]
[1729268968397,0.02820065,68627.0,68626.0,0.001658]
[1729268968609,0.12229588,68627.0,68626.0,0.001658]
[1729268968834,0.19570219,68627.0,68626.0,0.001658]
[1729268969031,0.30421632,68627.0,68626.0,0.001658]
[1729268969698,0.19570219,68627.0,68626.0,0.001658]
[1729268969918,0.30421632,68627.0,68626.0,0.001658]
[1729268970145,0.19570219,68627.0,68626.0,0.001658]
[1729268971012,0.30421632,68627.0,68626.0,0.001658]
[1729268971225,0.19570219,68627.0,68626.0,0.001658]
[1729268971442,0.30421632,68627.0,68626.0,0.001658]
[1729268972101,0.19570219,68627.0,68626.0,0.001658]
[1729268972520,0.19569524,68627.0,68626.0,0.001658]
[1729268972738,0.19569524,68627.0,68626.0,0.003618]
[1729268973651,0.19569524,68627.0,68626.0,0.001658]
[1729268973881,0.19569524,68627.0,68626.0,0.003618]
[1729268974116,0.18841543,68627.0,68626.0,0.003618]
[1729268974337,0.195698,68627.0,68626.0,0.003618]
[1729268976103,0.195698,68627.0,68626.0,0.001658]
[1729268978923,0.30420161,68627.0,68626.0,0.001658]
[1729268979340,0.32590253,68627.0,68626.0,0.001658]
[1729268979576,0.36635807,68627.0,68626.0,0.001658]
[1729268979835,0.36635807,68627.0,68616.0,0.0793]
[1729268980051,0.08679036,68617.0,68616.0,0.08126]
[1729268980274,0.195698,68617.0,68616.0,0.08126]
[1729268980497,0.195698,68617.0,68616.0,0.0793]
[1729268981399,0.28245983,68617.0,68616.0,0.0793]
[1729268981814,0.2651041,68617.0,68616.0,0.0793]
[1729268982037,0.28245627,68617.0,68616.0,0.0793]
[1729268982455,0.27517274,68617.0,68616.0,0.0793]
[1729268982674,0.3041824,68617.0,68616.0,0.0793]
[1729268982880,0.29689887,68617.0,68616.0,0.0793]
[1729268983500,0.3041824,68617.0,68616.0,0.0793]
[1729268984159,0.18841091,68617.0,68616.0,0.0793]
[1729268984360,0.19569444,68617.0,68616.0,0.0793]
[1729268985660,0.19568488,68617.0,68616.0,0.0793]
[1729268986493,0.28241443,68617.0,68616.0,0.0793]
[1729268987149,0.28241443,68617.0,68614.0,0.176]
[1729268987412,0.06504905,68615.0,68614.0,0.176]
[1729268987586,0.09323779,68615.0,68614.0,0.176]
[1729268988425,0.02818874,68615.0,68614.0,0.176]
[1729268989480,0.06504905,68616.0,68614.0,0.176]
[1729268989738,0.02819798,68615.0,68614.0,0.17796]
[1729268989988,0.02819869,68615.0,68614.0,0.17796]
[1729268992560,0.02819869,68615.0,68614.0,0.179618]
[1729268993427,0.06503919,68616.0,68614.0,0.179618]
[1729268993650,0.01734733,68615.0,68614.0,0.179618]
[1729268993897,0.02818941,68615.0,68614.0,0.179618]
[1729268995411,0.0715309,68615.0,68614.0,0.179618]
[1729268995634,0.02818941,68615.0,68614.0,0.179618]
[1729268996293,0.07153322,68615.0,68614.0,0.179618]
[1729268996706,0.02818941,68615.0,68614.0,0.177658]
[1729268996925,0.07153149,68615.0,68614.0,0.177658]
[1729268997348,0.02818941,68615.0,68614.0,0.258718]
[1729268997577,0.01084208,68615.0,68614.0,0.258718]
[1729268997826,0.000829,68626.0,68621.0,0.2628]
[1729268998032,0.21850759,68623.0,68622.0,0.0794]
[1729268998245,0.000829,68626.0,68625.0,0.00196]
[1729268998468,0.02902015,68626.0,68625.0,0.00196]
[1729269001181,0.0181774,68626.0,68625.0,0.00196]
[1729269001427,0.01817773,68626.0,68625.0,0.39871915]
[1729269001666,0.000829,68626.0,68625.0,0.4388651]
[1729269001900,0.01166833,68626.0,68625.0,0.24976]
[1729269002608,0.000829,68626.0,68625.0,0.24976]
[1729269002839,0.000829,68626.0,68625.0,0.39871915]
[1729269003931,0.000829,68626.0,68625.0,0.24976]
[1729269004642,0.01165934,68626.0,68625.0,0.24976]
[1729269005045,0.000829,68626.0,68625.0,0.24976]
[1729269005248,0.000829,68626.0,68625.0,0.39871915]
[1729269005470,0.000829,68626.0,68625.0,0.39775915]
[1729269005636,0.000829,68626.0,68625.0,0.34631323]
[1729269006760,0.000829,68626.0,68625.0,0.19735408]
[1729269007157,0.01164251,68626.0,68625.0,0.19735408]
[1729269010276,0.000829,68626.0,68625.0,0.19735408]
[1729269011165,0.000829,68626.0,68616.0,0.001658]
[1729269011166,0.000829,68626.0,68619.0,0.2471]
[1729269011414,0.04327981,68625.0,68619.0,0.2471]
[1729269011626,0.0713867,68624.0,68616.0,0.001658]
[1729269011895,0.06574872,68626.0,68616.0,0.001658]
[1729269011896,0.04327981,68621.0,68617.0,0.21850759]
[1729269012123,0.05409133,68620.0,68617.0,0.21850759]
[1729269012342,0.01081152,68619.0,68616.0,0.001658]
[1729269012570,0.04327981,68618.0,68616.0,0.001658]
[1729269012794,0.14895915,68617.0,68616.0,0.001658]
[1729269013019,0.30869763,68617.0,68616.0,0.001658]
[1729269013251,0.30869763,68617.0,68614.0,0.001658]
[1729269013252,0.33031971,68617.0,68614.0,0.001658]
[1729269013476,0.18136056,68616.0,68614.0,0.001658]
[1729269013693,0.30869763,68615.0,68614.0,0.001658]
[1729269013906,0.34761879,68615.0,68614.0,0.001658]
[1729269014358,0.45577259,68615.0,68614.0,0.001658]
[1729269014584,0.46658451,68615.0,68614.0,0.001658]
[1729269014794,0.35843071,68615.0,68614.0,0.001658]
[1729269015459,0.37283509,68615.0,68614.0,0.001658]
[1729269015668,0.35843071,68615.0,68614.0,0.001658]
[1729269016080,0.3657142,68615.0,68614.0,0.001658]
[1729269016286,0.35843071,68615.0,68614.0,0.001658]
[1729269017493,0.55843071,68615.0,68614.0,0.001658]
[1729269017732,0.56518172,68615.0,68614.0,0.001658]
[1729269017944,0.56718172,68615.0,68614.0,0.001658]
[1729269018188,0.56700558,68615.0,68614.0,0.001658]
[1729269019070,0.002,68613.0,68609.0,0.001658]
[1729269019285,0.10806347,68611.0,68609.0,0.001658]
[1729269019628,0.17707015,68610.0,68609.0,0.001658]
[1729269019727,0.18376177,68610.0,68609.0,0.001658]
[1729269020157,0.27020735,68610.0,68609.0,0.001658]
[1729269020373,0.18376177,68610.0,68609.0,0.001658]
[1729269020594,0.18376177,68610.0,68602.0,0.21850759]
[1729269020850,0.22931951,68609.0,68595.0,0.21850759]
[1729269021098,0.01081192,68608.0,68595.0,0.21850759]
[1729269021340,0.01081192,68607.0,68595.0,0.21850759]
[1729269021562,0.01081192,68606.0,68595.0,0.21850759]
[1729269021791,0.01081192,68605.0,68595.0,0.21850759]
[1729269022008,0.01081192,68604.0,68595.0,0.21850759]
[1729269022260,0.0099239,68604.0,68595.0,0.21850759]
[1729269022489,0.01081192,68603.0,68595.0,0.21850759]
[1729269022726,0.00661093,68604.0,68595.0,0.21850759]
[1729269022999,0.00660593,68602.0,68595.0,0.21850759]
[1729269023231,0.00661093,68603.0,68595.0,0.21850759]
[1729269023468,0.0495599,68609.0,68586.0,0.13083607]
[1729269023681,0.00660593,68602.0,68588.0,0.2524]
[1729269023902,0.21850759,68606.0,68591.0,0.17]
[1729269024119,0.21850759,68606.0,68593.0,0.1799]
[1729269024120,0.00990139,68601.0,68593.0,0.1799]
[1729269024245,0.21850759,68606.0,68593.0,0.1799]
[1729269024474,0.01079881,68605.0,68593.0,0.1799]
[1729269024716,0.01741975,68605.0,68593.0,0.1799]
[1729269024926,0.01079881,68604.0,68595.0,0.1863]
[1729269025155,0.0099239,68605.0,68597.0,0.1835]
[1729269025360,0.0495599,68609.0,68599.0,0.1835]
[1729269025567,0.0495599,68609.0,68594.0,0.21850759]
[1729269025568,0.00660207,68608.0,68600.0,0.14895915]
[1729269025798,0.00660207,68608.0,68602.0,0.0814]
[1729269026051,0.00660207,68608.0,68603.0,0.14895915]
[1729269026274,0.00660207,68608.0,68605.0,0.265]
[1729269026500,0.00660207,68608.0,68607.0,0.265]
[1729269026724,0.00660207,68608.0,68607.0,0.41395915]
[1729269026944,0.21850759,68613.0,68607.0,0.41395915]
[1729269026945,0.21850759,68613.0,68608.0,0.1836]
[1729269027216,0.21850759,68613.0,68608.0,0.33255915]
[1729269027391,0.2,68615.0,68608.0,0.33255915]
[1729269027628,0.21850759,68614.0,68608.0,0.1836]
[1729269027856,0.2,68615.0,68608.0,0.1836]